bitfinex/quotes_ETHUSD_20250904
["timestamp","ask_amount","ask_price","bid_price","bid_amount"]
[1756962914423,2.39510975,4384.6,4384.5,0.7695]
[1756962914719,0.1144,4384.6,4384.5,0.7695]
[1756962918490,0.001,4385.6,4384.5,1.171]
[1756962918705,0.1144,4385.2,4384.8,2.28059233]
[1756962918900,0.1144,4385.2,4385.1,0.2987]
[1756962919497,0.1144,4385.2,4385.1,1.171]
[1756962919921,0.1144,4385.2,4385.1,0.7695]
[1756962921713,0.1144,4385.2,4385.1,1.171]
[1756962921903,0.1144,4385.2,4385.1,3.5685497]
[1756962922931,0.1144,4385.2,4385.1,3.59135419]
[1756962923133,0.001,4385.6,4385.2,2.2803977]
[1756962923336,0.001,4385.6,4385.2,3.17550167]
[1756962923534,0.001,4385.6,4385.2,3.4513977]
[1756962923718,0.001,4385.6,4385.2,4.27578613]
[1756962924246,0.001,4385.6,4385.2,8.18878613]
[1756962927342,0.001,4385.6,4385.2,15.98878613]
[1756962928204,0.001,4385.6,4385.2,16.78078613]
[1756962928401,0.001,4385.6,4385.2,19.78078613]
[1756962930232,0.001,4385.6,4385.2,11.67428613]
[1756962930541,0.001,4385.6,4385.2,2.5790977]
[1756962930838,0.001,4385.6,4385.2,6.4890977]
[1756962931255,0.2891,4385.3,4385.1,0.1144]
[1756962931534,0.001,4385.3,4385.2,6.1903977]
[1756962931702,0.001,4385.3,4385.2,6.4808977]
[1756962932743,0.001,4385.3,4385.2,6.9583977]
[1756962932940,0.001,4385.3,4385.2,6.4808977]
[1756962933462,0.001,4385.3,4385.2,6.1903977]
[1756962933751,0.001,4385.3,4385.2,7.81692749]
[1756962933927,0.001,4385.3,4385.2,7.93132749]
[1756962934451,0.001,4385.3,4385.2,8.33282749]
[1756962934930,0.001,4385.3,4385.2,7.93132749]
[1756962935336,0.001,4385.3,4385.2,7.45382749]
[1756962935534,0.001,4385.3,4385.2,3.54382749]
[1756962935735,0.2891,4385.3,4385.2,2.3947977]
[1756962936044,0.7594,4385.3,4385.2,0.1144]
[1756962936238,0.7594,4385.3,4385.2,6.1883977]
[1756962937139,4.246,4385.3,4385.2,3.908]
[1756962937336,3.6407457,4385.3,4385.2,3.908]
[1756962937655,3.6407457,4385.3,4384.8,1.753]
[1756962937848,0.9569,4385.2,4384.9,3.908]
[1756962938229,0.2881,4385.0,4384.9,3.908]
[1756962938430,0.7584,4385.0,4384.9,3.908]
[1756962938954,0.1154,4385.3,4384.9,3.908]
[1756962939156,0.2881,4385.0,4384.9,3.908]
[1756962939473,0.7584,4385.0,4384.9,3.908]
[1756962940234,0.1154,4385.3,4384.9,3.908]
[1756962940434,0.2881,4385.0,4384.9,3.908]
[1756962940662,0.2881,4385.0,4384.8,1.753]
[1756962941042,0.2881,4385.0,4384.9,3.907]
[1756962941438,0.4025,4385.0,4384.9,3.907]
[1756962941833,0.8728,4385.0,4384.9,3.907]
[1756962943439,0.4025,4385.0,4384.9,3.907]
[1756962943966,0.8728,4385.0,4384.9,3.907]
[1756962947276,2.28060572,4384.8,4384.7,3.906]
[1756962947473,2.28070975,4384.6,4384.5,0.004]
[1756962947641,2.39510975,4384.6,4384.5,3.91]
[1756962947966,6.64010975,4384.6,4384.5,3.91]
[1756962949074,6.64010975,4384.6,4384.5,0.004]
[1756962950975,4.3594,4384.6,4384.5,0.004]
[1756962951173,3.8728,4384.6,4384.5,0.004]
[1756962951876,6.15350975,4384.6,4384.5,0.004]
[1756962952275,3.4025,4384.6,4384.5,0.004]
[1756962953776,7.02,4384.8,4384.7,2.28065774]
[1756962954072,7.02,4384.8,4384.7,0.768]
[1756962954443,7.02,4384.8,4384.5,4.3003]
[1756962954650,0.2881,4384.7,4384.5,4.3003]
[1756962954844,0.2881,4384.7,4384.5,3.909]
[1756962955555,7.1344,4384.8,4384.6,3.904]
[1756962956180,0.1144,4384.8,4384.7,3.04865774]
[1756962957060,0.1144,4384.8,4384.7,0.768]
[1756962957686,0.1154,4385.3,4384.7,1.80615159]
[1756962957888,0.001,4385.3,4385.2,2.2803977]
[1756962958088,0.001,4385.3,4385.2,6.1843977]
[1756962958292,0.001,4385.3,4385.2,8.21182654]
[1756962959352,0.001,4385.3,4385.2,9.00382654]
[1756962960699,0.001,4385.3,4385.2,16.80382654]
[1756962960879,0.001,4385.3,4385.2,19.80382654]
[1756962965788,0.001,4385.3,4385.2,19.89519069]
[1756962966196,0.001,4385.3,4385.2,19.49369069]
[1756962966502,0.001,4385.3,4385.2,3.13832654]
[1756962966683,0.001,4385.3,4385.2,7.80652654]
[1756962967316,0.001,4385.3,4385.2,8.20802654]
[1756962967599,0.001,4385.3,4385.2,9.00002654]
[1756962969001,0.001,4385.3,4385.2,16.80002654]
[1756962969385,0.001,4385.3,4385.2,16.89139068]
[1756962971007,0.001,4385.3,4385.2,20.00579068]
[1756962971182,1e-08,4385.8,4385.7,2.28013772]
[1756962971515,1e-08,4385.8,4385.7,11.18295286]
[1756962971701,1e-08,4385.8,4385.7,12.32885149]
[1756962971912,1e-08,4385.8,4385.7,20.22020374]
[1756962972075,1e-08,4386.2,4385.8,3.792]
[1756962972283,1e-08,4386.2,4386.1,30.12296603]
[1756962972505,1e-08,4386.2,4386.1,34.42376603]
[1756962972713,1e-08,4386.2,4386.1,10.85172977]
[1756962972882,1e-08,4386.2,4386.1,6.95272977]
[1756962973080,1e-08,4386.2,4386.1,8.11835296]
[1756962973310,1e-08,4386.2,4386.1,11.53835296]
[1756962973806,1e-08,4386.2,4386.1,12.01735296]
[1756962974009,1e-08,4386.2,4386.1,8.53835296]
[1756962974909,1e-08,4386.2,4386.1,9.01635296]
[1756962975611,1e-08,4386.2,4386.1,16.81635296]
[1756962976013,1e-08,4386.2,4386.1,16.33735296]
[1756962976616,0.30050001,4386.2,4386.1,16.04915296]
[1756962976909,1e-08,4386.2,4386.1,16.04915296]
[1756962977114,1e-08,4386.2,4386.1,16.33735296]
[1756962977309,1e-08,4386.2,4386.1,16.81635296]
[1756962979485,1e-08,4386.2,4386.1,25.71313284]
[1756962979894,1e-08,4386.2,4386.1,16.04915296]
[1756962980108,1e-08,4386.2,4386.1,24.94593284]
[1756962980716,0.30050001,4386.2,4386.1,11.24555296]
[1756962980915,1.20400001,4386.2,4386.1,15.14155296]
[1756962981410,1.20400001,4386.2,4386.1,2.27992977]
[1756962981590,1.20400001,4386.2,4386.1,6.17592977]
[1756962983892,1.20400001,4386.2,4386.1,2.27992977]
[1756962984092,1.20400001,4386.2,4386.1,6.17592977]
[1756962984293,1.20400001,4386.2,4385.7,1.753]
[1756962984603,0.9035,4386.1,4385.9,2.28001757]
[1756962984789,1e-08,4386.2,4386.0,3.85627255]
[1756962985340,2.2798778,4386.2,4386.1,3.899]
[1756962985543,1e-08,4386.2,4386.1,3.899]
[1756962985833,1.20400001,4386.2,4386.1,3.899]
[1756962987021,4.20400001,4386.2,4386.1,3.899]
[1756962987591,6.4838778,4386.2,4386.1,3.899]
[1756962988211,4.20400001,4386.2,4386.1,3.899]
[1756962988924,6.4838778,4386.2,4386.1,3.899]
[1756962990120,6.4838778,4386.2,4386.1,0.004]
[1756962990996,6.5974778,4386.2,4386.1,0.004]
[1756962991414,10.4924778,4386.2,4386.1,0.004]
[1756962993208,11.2844778,4386.2,4386.1,0.004]
[1756962996460,18.3044778,4386.2,4386.1,0.004]
[1756962996670,2.28013772,4385.7,4385.6,0.004]
[1756962996847,9.29412268,4385.7,4385.6,0.004]
[1756962997025,10.52253772,4385.7,4385.6,0.004]
[1756962998964,6.62853772,4385.7,4385.6,0.004]
[1756962999172,10.52253772,4385.7,4385.6,0.004]
[1756963000872,9.60163772,4385.7,4385.6,0.004]
[1756963001081,10.05343772,4385.7,4385.6,0.004]
[1756963002065,10.52253772,4385.7,4385.6,0.004]
[1756963002267,9.28853772,4385.7,4385.6,0.004]
[1756963002560,3.1144,4385.7,4385.6,0.004]
[1756963002749,0.1144,4385.7,4385.6,0.7919]
[1756963003739,0.1144,4385.7,4385.6,0.3108]
[1756963004267,0.1144,4385.7,4385.6,0.004]
[1756963004564,0.1144,4385.7,4385.6,0.3108]
[1756963004769,0.1144,4385.7,4385.6,0.004]
[1756963005566,0.1144,4385.7,4385.6,0.3108]
[1756963005871,0.1144,4385.7,4385.6,0.004]
[1756963006669,0.1144,4385.7,4385.6,0.3108]
[1756963007171,0.1144,4385.7,4385.6,0.7919]
[1756963008393,0.1144,4385.9,4385.6,0.7919]
[1756963008555,0.1144,4385.9,4385.7,0.4811]
[1756963008952,0.1144,4385.9,4385.8,0.7879]
[1756963009155,1e-08,4386.2,4385.9,2.28003374]
[1756963009403,1e-08,4386.2,4385.7,2.28012059]
[1756963009404,1e-08,4386.2,4386.1,0.3068]
[1756963009559,1e-08,4386.2,4386.1,2.60952906]
[1756963009758,1e-08,4386.2,4386.1,3.58292977]
[1756963010990,1e-08,4386.2,4386.1,0.9015]
[1756963012225,1e-08,4386.2,4385.6,3.896]
[1756963012410,1e-08,4386.2,4385.9,0.5955]
[1756963012911,1e-08,4386.2,4386.1,0.3068]
[1756963013427,1e-08,4386.2,4386.1,4.1978]
[1756963013598,1e-08,4386.2,4386.1,4.6789]
[1756963013798,1e-08,4386.2,4386.1,6.95882977]
[1756963014119,1e-08,4386.2,4386.1,8.29565997]
[1756963014695,1e-08,4386.2,4386.1,10.04865997]
[1756963016008,1e-08,4386.2,4386.1,5.75615997]
[1756963016208,1e-08,4386.2,4386.1,10.04765997]
[1756963016420,1e-08,4386.2,4386.1,9.64615997]
[1756963017994,1e-08,4386.2,4386.1,9.16505997]
[1756963018428,1e-08,4386.2,4386.1,9.64615997]
[1756963019700,1e-08,4386.2,4386.1,10.04765997]
[1756963020023,1e-08,4386.2,4386.1,9.64615997]
[1756963020796,1e-08,4386.2,4386.1,10.83965997]
[1756963021618,1e-08,4386.2,4386.1,10.93100888]
[1756963021904,1e-08,4386.2,4386.1,18.73100888]
[1756963026032,1e-08,4386.2,4386.1,21.73100888]
[1756963026737,1e-08,4386.2,4386.1,21.72800888]
[1756963026943,1e-08,4386.2,4386.1,21.32650888]
[1756963027110,1e-08,4386.2,4386.1,12.73450888]
[1756963027311,1e-08,4386.2,4386.1,12.16205997]
[1756963027638,1e-08,4386.2,4386.1,5.27505997]
[1756963027841,1e-08,4386.2,4386.1,8.85525997]
[1756963027842,0.29530001,4386.2,4386.1,8.85525997]
[1756963028041,1e-08,4386.2,4386.1,8.85525997]
[1756963028244,0.29530001,4386.2,4386.1,8.85525997]
[1756963028541,1e-08,4386.2,4386.1,7.91992977]
[1756963028757,0.29530001,4386.2,4386.1,4.03292977]
[1756963028945,1e-08,4386.2,4386.1,4.03292977]
[1756963029152,0.29530001,4386.2,4386.1,1.753]
[1756963029322,1.23500001,4386.2,4386.1,5.64]
[1756963029519,0.76720001,4386.2,4386.1,7.91992977]
[1756963031817,0.76720001,4386.2,4386.1,5.64]
[1756963032454,1.23500001,4386.2,4386.1,1.753]
[1756963032660,1.23500001,4386.2,4386.1,5.639]
[1756963032842,1.34860001,4386.2,4386.1,5.639]
[1756963034029,1.34860001,4386.2,4386.1,1.753]
[1756963034234,2.27994252,4386.1,4386.0,3.886]
[1756963034436,1.3486,4386.1,4386.0,3.886]
[1756963035665,6.62852977,4386.1,4386.0,3.886]
[1756963035853,4.3486,4386.1,4385.6,0.004]
[1756963036056,13.9927429,4385.7,4385.6,0.004]
[1756963036357,16.27288062,4385.7,4385.6,0.004]
[1756963036557,17.50788062,4385.7,4385.6,0.004]
[1756963037543,6.62953772,4385.7,4385.6,0.004]
[1756963040739,7.42153772,4385.7,4385.6,0.004]
[1756963040972,26.12136127,4385.7,4385.6,0.004]
[1756963041475,26.39790093,4385.7,4385.6,0.004]
[1756963041675,26.39790093,4385.7,4385.6,1e-08]
[1756963041676,26.4014211,4385.7,4385.6,1e-08]
[1756963041861,0.792,4385.4,4385.2,0.004]
[1756963042052,9.5444,4385.3,4385.2,0.004]
[1756963042247,13.0597457,4385.3,4385.2,0.004]
[1756963043270,13.17360264,4385.3,4385.2,0.004]
[1756963044874,13.0597457,4385.3,4385.2,0.004]
[1756963045096,15.4027457,4385.3,4385.2,0.004]
[1756963045476,19.2877457,4385.3,4385.2,0.004]
[1756963045673,18.8199457,4385.3,4385.2,0.004]
[1756963046994,19.2877457,4385.3,4385.2,0.004]
[1756963048096,18.3480457,4385.3,4385.2,0.004]
[1756963048262,18.8199457,4385.3,4385.2,0.004]
[1756963049295,19.2877457,4385.3,4385.2,0.004]
[1756963049497,20.0797457,4385.3,4385.2,0.004]
[1756963049670,20.63634518,4385.3,4385.2,0.004]
[1756963050601,13.36845753,4385.2,4385.1,0.004]
[1756963050766,13.64499718,4385.2,4385.1,0.004]
[1756963050967,14.90989718,4385.2,4385.1,0.004]
[1756963051969,14.90989718,4385.2,4384.5,0.004]
[1756963051970,3.792,4384.8,4384.5,1e-08]
[1756963052173,24.7725333,4384.6,4384.5,1e-08]
[1756963052401,32.37247295,4384.6,4384.5,1e-08]
[1756963052696,33.32997295,4384.6,4384.5,1e-08]
[1756963052900,33.42142775,4384.6,4384.5,1e-08]
[1756963053398,33.1448881,4384.6,4384.5,1e-08]
[1756963053601,37.0288881,4384.6,4384.5,1e-08]
[1756963054567,18.32906455,4384.6,4384.5,1e-08]
[1756963055795,14.44506455,4384.6,4384.5,1e-08]
[1756963056104,13.85740975,4384.6,4384.5,1e-08]
[1756963056292,17.74140975,4384.6,4384.5,1e-08]
[1756963056501,18.23760975,4384.6,4384.5,1e-08]
[1756963056896,18.79420923,4384.6,4384.5,1e-08]
[1756963057097,18.51766958,4384.6,4384.5,1e-08]
[1756963058181,18.23760975,4384.6,4384.5,1e-08]
[1756963059606,29.12871298,4384.6,4384.5,1e-08]
[1756963060490,29.22016486,4384.6,4384.5,1e-08]
[1756963060687,29.49670451,4384.6,4384.5,1e-08]
[1756963061317,29.98083787,4384.6,4384.5,1e-08]
[1756963061502,29.49670451,4384.6,4384.5,1e-08]
[1756963062119,6.07281379,4384.4,4384.2,0.004]
[1756963062306,11.98735344,4384.4,4384.2,0.004]
[1756963062500,13.36665344,4384.4,4384.2,0.004]
[1756963063016,20.38265344,4384.4,4384.2,0.004]
[1756963063496,19.88645344,4384.4,4384.2,0.004]
[1756963063910,20.38265344,4384.4,4384.2,0.004]
[1756963064121,20.86732575,4384.4,4384.2,0.004]
[1756963065230,20.0945861,4384.4,4384.2,0.004]
[1756963065392,14.8428861,4384.4,4384.2,0.004]
[1756963065718,20.37012575,4384.4,4384.2,0.004]
[1756963067731,29.28607938,4384.4,4384.2,0.004]
[1756963068119,28.24083973,4384.4,4384.2,0.004]
[1756963068896,24.35783973,4384.4,4384.2,0.004]
[1756963069097,28.24083973,4384.4,4384.2,0.004]
[1756963069403,29.00953973,4384.4,4384.2,0.004]
[1756963070442,24.35783973,4384.4,4384.2,0.004]
[1756963070637,28.23983973,4384.4,4384.2,0.004]
[1756963071309,23.56583973,4384.4,4384.3,0.3037]
[1756963071509,27.33343973,4384.4,4384.3,0.7824]
[1756963071741,27.44783973,4384.4,4384.3,0.7824]
[1756963072143,23.56583973,4384.4,4384.3,0.7824]
[1756963072443,27.44783973,4384.4,4384.3,0.7824]
[1756963073044,11.6498861,4384.4,4384.3,0.7824]
[1756963073342,16.29321379,4384.4,4384.3,1.1839]
[1756963073541,16.29321379,4384.4,4384.3,0.7824]
[1756963073856,16.29321379,4384.4,4384.3,0.3037]
[1756963074514,25.20916742,4384.4,4384.3,0.7824]
[1756963075742,25.20916742,4384.4,4384.3,0.3037]
[1756963076122,25.20916742,4384.4,4384.3,0.7824]
[1756963077640,19.04635363,4384.4,4384.3,0.7824]
[1756963077840,3.1144,4384.4,4384.3,1.1839]
[1756963078041,3.1144,4384.4,4384.3,1.30309]
[1756963078849,3.1144,4384.4,4384.3,0.7824]
[1756963079453,5.39521379,4384.4,4384.3,0.7824]
[1756963080131,5.39521379,4384.4,4384.3,1.1839]
[1756963080335,5.39521379,4384.4,4384.3,0.7824]
[1756963081752,5.39521379,4384.4,4384.3,0.004]
[1756963082255,5.70291379,4384.4,4384.3,0.004]
[1756963082475,5.39521379,4384.4,4384.3,0.004]
[1756963084874,14.69865344,4384.4,4384.3,0.004]
[1756963085463,15.18486641,4384.4,4384.3,0.004]
[1756963085648,15.46492624,4384.4,4384.3,0.004]
[1756963086842,15.18486641,4384.4,4384.3,0.004]
[1756963087755,6.07302189,4384.0,4383.9,1e-08]
[1756963088061,6.07302189,4384.0,4383.8,0.029]
[1756963088062,6.07307392,4383.9,4383.8,1e-08]
[1756963088265,14.13188636,4383.9,4383.8,1e-08]
[1756963088455,15.35078636,4383.9,4383.8,1e-08]
[1756963089455,19.22978636,4383.9,4383.8,1e-08]
[1756963090277,28.14573999,4383.9,4383.8,1e-08]
[1756963091350,28.14573999,4383.9,4383.3,1e-08]
[1756963091351,0.792,4383.6,4383.3,1e-08]
[1756963091551,23.90524138,4383.4,4383.3,1e-08]
[1756963091883,25.090094,4383.4,4383.3,1e-08]
[1756963092183,26.001294,4383.4,4383.3,1e-08]
[1756963092659,33.01729399,4383.4,4383.3,1e-08]
[1756963094492,6.07343821,4383.2,4383.1,1e-08]
[1756963094654,19.48419082,4383.2,4383.1,1e-08]
[1756963094854,20.70309082,4383.2,4383.1,1e-08]
[1756963095559,20.70309082,4383.2,4381.8,1e-08]
[1756963095560,0.792,4382.5,4381.8,1e-08]
[1756963095887,0.792,4382.5,4380.8,0.025]
[1756963095888,2.28263598,4380.9,4380.8,0.025]
[1756963096189,18.19657457,4380.9,4380.8,0.3177]
[1756963096382,19.29068961,4380.9,4380.8,0.025]
[1756963096574,19.40344394,4380.9,4380.8,0.025]
[1756963096889,28.77919757,4380.9,4380.8,0.025]
[1756963097078,29.23059757,4380.9,4380.8,0.025]
[1756963097278,19.86324394,4380.9,4380.8,0.025]
[1756963097590,10.94729031,4380.9,4380.8,0.025]
[1756963098064,10.83289031,4380.9,4380.8,0.025]
[1756963098596,5.28263598,4380.9,4380.8,0.8059]
[1756963098757,5.28263598,4380.9,4380.8,1.2074]
[1756963098758,3.878,4380.9,4380.8,1.2074]
[1756963098956,3.878,4380.9,4380.8,0.8059]
[1756963098957,6.16063598,4380.9,4380.8,0.8059]
[1756963099364,9.16063598,4380.9,4380.8,0.8059]
[1756963099766,6.878,4380.9,4380.8,0.8059]
[1756963100101,3.0,4380.9,4380.8,1.2074]
[1756963100303,2.2823284,4381.5,4380.8,1.32814]
[1756963100493,3.879,4381.4,4380.9,0.8897]
[1756963100805,6.879,4381.4,4381.3,0.2927]
[1756963101111,2.28230957,4381.6,4381.3,1.1824]
[1756963101416,1.754,4382.1,4381.4,0.8897]
[1756963101576,3.879,4382.0,4381.4,0.8897]
[1756963101772,3.879,4382.0,4381.9,0.2927]
[1756963101991,3.879,4382.1,4381.9,0.2927]
[1756963102185,3.0,4382.0,4381.9,1.1824]
[1756963102480,3.0,4382.0,4381.9,0.7809]
[1756963102809,2.28195979,4382.2,4381.9,0.7809]
[1756963103102,3.0,4382.1,4382.0,0.8897]
[1756963103303,3.0,4382.1,4381.4,0.11824]
[1756963103486,5.28202001,4382.1,4382.0,0.2927]
[1756963103689,2.28202001,4382.1,4382.0,0.2927]
[1756963103890,2.28202001,4382.1,4382.0,0.7809]
[1756963104289,3.0,4382.2,4382.0,1.1824]
[1756963104492,3.878,4382.4,4382.0,1.1824]
[1756963104812,3.878,4382.7,4382.1,0.8897]
[1756963105106,0.025,4382.8,4382.6,0.2927]
[1756963105515,0.025,4382.8,4382.7,0.8897]
[1756963105911,0.025,4382.8,4381.5,1.755]
[1756963106215,2.2819771,4382.2,4381.6,0.4882]
[1756963106418,5.2820109,4382.1,4381.6,0.4882]
[1756963106603,5.2820109,4382.1,4382.0,0.2927]
[1756963107193,3.0,4382.1,4382.0,0.7809]
[1756963107588,3.001,4382.1,4382.0,0.7809]
[1756963107809,0.001,4382.1,4382.0,1.1824]
[1756963108239,0.1154,4382.1,4382.0,1.1824]
[1756963108539,0.001,4382.1,4382.0,3.58270298]
[1756963110008,0.001,4382.1,4382.0,1.30064]
[1756963111432,2.28305469,4382.1,4381.7,0.1144]
[1756963111617,0.001,4382.1,4381.5,2.2414]
[1756963111822,0.1144,4381.7,4381.5,2.2414]
[1756963112018,0.1144,4381.7,4381.5,1.755]
[1756963112242,0.1144,4381.7,4381.6,0.8027]
[1756963113318,0.1144,4381.7,4381.6,1.2042]
[1756963113513,0.1144,4381.7,4381.6,3.78239131]
[1756963113718,0.001,4382.1,4382.0,2.28206298]
[1756963114249,0.001,4382.1,4382.0,3.48626298]
[1756963116313,0.001,4382.1,4382.0,3.08476298]
[1756963118427,0.001,4382.1,4382.0,0.8027]
[1756963119020,0.001,4382.1,4382.0,4.00582298]
[1756963120016,0.001,4382.1,4382.0,4.0286436]
[1756963120365,0.001,4382.1,4382.0,4.00582298]
[1756963120551,0.001,4382.1,4382.0,4.1430436]
[1756963120847,0.001,4382.1,4382.0,11.92022298]
[1756963123658,0.001,4382.1,4382.0,15.79522298]
[1756963124454,0.001,4382.1,4382.0,7.99522298]
[1756963125325,0.001,4382.1,4382.0,8.78722298]
[1756963125525,0.001,4382.1,4382.0,12.01572298]
[1756963125768,0.001,4382.1,4382.0,12.10715166]
[1756963125937,0.001,4382.1,4382.0,11.87865166]
[1756963126123,0.001,4382.1,4382.0,19.67865166]
[1756963128839,0.001,4382.1,4382.0,15.80365166]
[1756963129141,0.001,4382.1,4382.0,16.67765166]
[1756963131564,0.001,4382.1,4382.0,16.27615166]
[1756963132267,0.001,4382.1,4382.0,3.32375166]
[1756963132465,0.7498,4382.1,4382.0,6.36089166]
[1756963132647,1.2239,4382.1,4382.0,3.9874]
[1756963133157,1.2239,4382.1,4381.6,2.28626185]
[1756963133158,1.2239,4382.1,4381.6,0.004]
[1756963133326,0.1144,4382.0,4381.7,2.491]
[1756963133528,0.1144,4382.0,4381.6,0.004]
[1756963133529,5.28221922,4381.7,4381.6,0.004]
[1756963133740,2.28242758,4381.3,4381.2,0.004]
[1756963134058,5.70561254,4381.3,4381.2,0.004]
[1756963134234,6.61972758,4381.3,4381.2,0.004]
[1756963138831,9.16572758,4381.3,4381.2,0.004]
[1756963140259,9.9643,4381.3,4381.2,0.004]
[1756963140447,6.0913,4381.3,4381.2,0.004]
[1756963140652,9.9643,4381.3,4381.2,0.004]
[1756963141653,6.0913,4381.3,4381.2,0.004]
[1756963141954,8.37372758,4381.3,4381.2,0.004]
[1756963142776,6.0913,4381.3,4381.2,0.004]
[1756963142976,8.37372758,4381.3,4381.2,0.004]
[1756963143271,6.0913,4381.3,4381.2,0.004]
[1756963144071,9.9653,4381.3,4381.2,0.004]
[1756963144274,9.9643,4381.3,4381.2,0.004]
[1756963144659,9.0446,4381.3,4381.2,0.004]
[1756963144848,3.4176,4381.3,4381.2,0.004]
[1756963145243,3.8629,4381.3,4381.2,0.004]
[1756963145450,4.3529,4381.3,4381.2,0.004]
[1756963145681,6.64091254,4381.3,4381.2,0.004]
[1756963145876,6.63532758,4381.3,4381.2,0.004]
[1756963146074,13.65132757,4381.3,4381.2,0.004]
[1756963146675,14.44332757,4381.3,4381.2,0.004]
[1756963147564,7.42732758,4381.3,4381.2,0.004]
[1756963147880,4.3529,4381.3,4381.2,0.004]
[1756963148081,8.2269,4381.3,4381.2,0.004]
[1756963148381,7.2906,4381.3,4381.2,0.004]
[1756963148582,7.7359,4381.3,4381.2,0.004]
[1756963148954,0.1144,4381.3,4381.2,0.3132]
[1756963149154,0.1144,4381.3,4381.2,1.2427]
[1756963149385,0.1144,4381.3,4381.2,3.52517968]
[1756963149587,0.001,4382.1,4381.7,2.28221902]
[1756963149762,0.1144,4381.8,4381.7,2.28221902]
[1756963149968,0.1144,4381.8,4381.7,3.52091902]
[1756963150167,0.001,4382.1,4381.8,2.28211966]
[1756963150368,0.1144,4382.0,4381.9,2.28211506]
[1756963150573,0.1144,4382.0,4381.9,3.52081506]
[1756963151092,0.001,4382.1,4382.0,2.28206298]
[1756963151262,0.001,4382.1,4382.0,3.21156298]
[1756963151467,0.001,4382.1,4382.0,3.52076298]
[1756963152478,0.001,4382.1,4381.4,4.9169]
[1756963152689,0.001,4382.1,4381.7,2.28217263]
[1756963153589,0.001,4382.1,4381.7,3.21171443]
[1756963154292,0.001,4382.1,4381.8,2.2821449]
[1756963154465,0.001,4382.1,4381.8,2.28215069]
[1756963154793,0.001,4382.1,4381.6,2.28226808]
[1756963154794,0.1144,4381.9,4381.6,2.28226808]
[1756963154981,0.1144,4381.9,4381.5,3.873]
[1756963155287,0.1144,4381.9,4381.5,6.1553136]
[1756963155471,0.1144,4381.9,4381.6,2.28227119]
[1756963155667,0.1144,4381.9,4381.7,2.28220724]
[1756963155989,0.1144,4381.9,4381.6,2.28226618]
[1756963156175,0.1144,4381.9,4381.8,0.3092]
[1756963156579,0.1144,4381.9,4381.8,2.59136714]
[1756963156892,0.001,4382.1,4382.0,2.28206298]
[1756963157195,0.001,4382.6,4382.5,2.28180262]
[1756963157358,0.001,4382.6,4382.5,6.46300262]
[1756963157559,0.001,4382.6,4382.5,2.59100262]
[1756963157770,0.001,4382.6,4382.5,7.39250262]
[1756963157984,0.001,4382.6,4382.5,8.37138071]
[1756963158587,0.001,4382.6,4382.5,6.08957809]
[1756963158793,0.001,4382.6,4382.5,5.61807809]
[1756963158975,0.001,4382.6,4382.5,7.44188071]
[1756963159164,0.001,4382.6,4382.5,8.37138071]
[1756963160209,0.001,4382.6,4382.5,7.44188071]
[1756963160387,0.001,4382.6,4382.5,6.46300262]
[1756963160586,0.001,4382.6,4382.4,0.1144]
[1756963160587,0.3141,4382.6,4382.4,0.1144]
[1756963160774,0.001,4382.1,4382.0,4.03704693]
[1756963160980,0.001,4382.1,4382.0,5.9352]
[1756963161181,0.001,4382.1,4382.0,1.755]
[1756963161495,0.001,4382.1,4382.0,5.626]
[1756963161696,0.3141,4382.1,4382.0,1.755]
[1756963164097,0.001,4382.1,4382.0,1.755]
[1756963164297,0.001,4382.1,4382.0,2.0642]
[1756963164603,0.001,4382.1,4382.0,1.755]
[1756963165179,0.3141,4382.1,4382.0,1.755]
[1756963165376,2.28206574,4382.0,4381.8,0.004]
[1756963165604,0.1144,4381.9,4381.8,3.875]
[1756963165992,0.1144,4381.9,4381.8,5.1137]
[1756963166307,0.001,4382.1,4381.8,5.1137]
[1756963166514,0.1144,4381.9,4381.8,5.1137]
[1756963167014,0.1144,4381.9,4381.8,7.39586714]
[1756963167179,0.1144,4381.9,4381.8,5.1137]
[1756963167506,0.1144,4381.9,4381.8,4.6422]
[1756963168909,0.1144,4381.9,4381.8,4.1842]
[1756963170576,0.1144,4381.9,4381.8,4.6614]
[1756963171210,0.001,4382.1,4382.0,2.28206298]
[1756963171590,0.001,4382.1,4382.0,3.49866298]
[1756963171790,0.001,4382.1,4382.0,1.2166]
[1756963172907,0.001,4382.1,4382.0,3.49866298]
[1756963173423,0.001,4382.1,4382.0,7.36866298]
[1756963173626,0.001,4382.1,4382.0,5.0866]
[1756963173933,0.001,4382.1,4382.0,4.6477]
[1756963174234,0.001,4382.1,4382.0,6.92976298]
[1756963174440,0.001,4382.1,4382.0,7.68815626]
[1756963174735,0.001,4382.1,4382.0,7.80255626]
[1756963177402,0.001,4382.1,4382.0,7.36365626]
[1756963177605,0.001,4382.1,4382.0,0.4149]
[1756963177819,0.001,4382.1,4382.0,6.45156298]
[1756963178008,0.001,4382.1,4382.0,7.36766298]
[1756963179705,0.001,4382.1,4382.0,7.37166298]
[1756963180418,0.001,4382.1,4382.0,6.93276298]
[1756963180635,0.001,4382.1,4382.0,27.01331094]
[1756963180932,1e-08,4383.0,4382.9,3.07359437]
[1756963181105,1e-08,4383.0,4382.9,8.71941031]
[1756963181433,0.025,4383.8,4383.7,2.281178]
[1756963181725,0.025,4383.8,4383.7,7.904178]
[1756963181927,0.025,4383.8,4383.7,9.22322123]